[Event "Bundesturnier Hauptturnier 1 2024"]
[Site "Olten"]
[Date "2024.05.12"]
[Round "7.11"]
[White "Manko, Mariia"]
[Black "Menzi, Jonas"]
[Result "1/2-1/2"]
[ECO "E05"]
[WhiteElo "2247"]
[BlackElo "2063"]
[Annotator "ChessBase"]
[PlyCount "155"]
[EventDate "2024.05.09"]
[EventType "tourn"]
[EventCountry "SUI"]
[SourceTitle "playchess.com"]
[Source "ChessBase"]
[SourceQuality "1"]
[TimeControl "5400+30"]

1. d4 {[%emt 0:00:12]} d5 {[%emt 0:00:22]} 2. c4 {[%emt 0:00:06]} e6 {[%emt 0:00:06]} 3. Nf3 {[%emt 0:00:18]} Nf6 {[%emt 0:00:09]} 4. g3 {[%emt 0:00:04]} Be7 {[%emt 0:00:09]} 5. Bg2 {[%emt 0:00:06]} O-O {[%emt 0:00:13]} 6. O-O {[%emt 0:00:06]} dxc4 {[%emt 0:00:40]} 7. Qc2 {[%emt 0:00:28]} b6 {[%emt 0:00:13]} 8. Ne5 {[%emt 0:11:50]} Qxd4 {[%emt 0:00:15]} 9. Bxa8 {[%emt 0:03:01]} Qxe5 {[%emt 0:00:11]} 10. Bf3 {[%emt 0:02:50]} Nd5 {[%emt 0:00:10]} 11. Qxc4 {[%emt 0:05:54]} Ba6 {[%emt 0:00:18]} 12. Qa4 {[%emt 0:15:47]} c5 {[%emt 0:00:09]} 13. Na3 {[%emt 0:01:53]} Qc7 {[%emt 0:00:11]} 14. Rd1 {[%emt 0:09:25]} Qc6 {[%emt 0:00:20]} 15. Qc2 {[%emt 0:02:28]} Qc8 {[%emt 0:11:45]} 16. Bf4 {[%emt 0:14:32]} Nc6 {[%emt 0:05:17]} 17. Rac1 {[%emt 0:03:37]} Nxf4 {[%emt 0:13:30]} 18. gxf4 {[%emt 0:00:46]} Nd4 {[%emt 0:00:47]} 19. Rxd4 {[%emt 0:07:28]} cxd4 {[%emt 0:00:30]} 20. Qxc8 {[%emt 0:00:30]} Rxc8 {[%emt 0:00:30]} 21. Rxc8+ {[%emt 0:00:30]} Bxc8 {[%emt 0:00:30]} 22. Nb5 {[%emt 0:00:30]} d3 {[%emt 0:00:30]} 23. Nxa7 {[%emt 0:00:30]} Bb7 {[%emt 0:20:35]} 24. Nb5 {[%emt 0:10:58]} Bxf3 {[%emt 0:16:28]} 25. exf3 {[%emt 0:00:18]} Bf6 {[%emt 0:00:11]} 26. Kf1 {[%emt 0:00:02]} Bxb2 {[%emt 0:00:06]} 27. Nd6 {[%emt 0:02:58]} f5 {[%emt 0:11:30]} 28. Ke1 {[%emt 0:01:58]} Bd4 {[%emt 0:04:04]} 29. a4 {[%emt 0:01:54]} Kf8 {[%emt 0:00:42]} 30. Kd2 {[%emt 0:00:15]} Bxf2 {[%emt 0:01:04]} 31. Kxd3 {[%emt 0:00:08]} Ke7 {[%emt 0:01:10]} 32. Nc4 {[%emt 0:00:43]} Kd7 {[%emt 0:02:07]} 33. Ne5+ {[%emt 0:00:31]} Kd6 {[%emt 0:01:07]} 34. Kc4 {[%emt 0:00:05]} Be3 {[%emt 0:00:56]} 35. Nd3 {[%emt 0:01:01]} Kc6 {[%emt 0:01:22]} 36. h3 {[%emt 0:00:41]} h6 {[%emt 0:00:39]} 37. h4 {[%emt 0:01:15]} h5 {[%emt 0:01:10]} 38. Ne5+ {[%emt 0:00:08]} Kb7 {[%emt 0:01:34]} 39. Ng6 {[%emt 0:00:12]} Bf2 {[%emt 0:02:47]} 40. Kb5 {[%emt 0:00:49]} Be1 {[%emt 0:00:29]} 41. Kc4 {[%emt 0:01:24]} Kc6 {[%emt 0:01:06]} 42. Ne5+ {[%emt 0:00:43]} Kd6 {[%emt 0:00:27]} 43. Ng6 {[%emt 0:01:21]} Bf2 {[%emt 0:02:39]} 44. Kb5 {[%emt 0:00:07]} Kc7 {[%emt 0:01:28]} 45. Nf8 {[%emt 0:00:11]} Kd6 {[%emt 0:00:40]} 46. Ng6 {[%emt 0:00:04]} Kd7 {[%emt 0:00:41]} 47. Kc4 {[%emt 0:00:35]} Ke8 {[%emt 0:00:17]} 48. Kb5 {[%emt 0:00:11]} Kd7 {[%emt 0:01:38]} 49. Kc4 {[%emt 0:00:41]} Kc6 {[%emt 0:00:29]} 50. Ne5+ {[%emt 0:00:24]} Kb7 {[%emt 0:00:27]} 51. Ng6 {[%emt 0:00:25]} Ka6 {[%emt 0:00:12]} 52. Kb4 {[%emt 0:00:34]} Bg3 {[%emt 0:00:36]} 53. Kc4 {[%emt 0:00:21]} Ka5 {[%emt 0:00:07]} 54. Kb3 {[%emt 0:00:04]} Be1 {[%emt 0:00:33]} 55. Ka3 {[%emt 0:01:25]} Bf2 {[%emt 0:01:07]} 56. Kb3 {[%emt 0:00:14]} Be1 {[%emt 0:00:10]} 57. Ka3 {[%emt 0:00:24]} b5 {[%emt 0:00:04]} 58. axb5 {[%emt 0:00:20]} Kxb5 {[%emt 0:00:01]} 59. Kb3 {[%emt 0:00:40]} Kc5 {[%emt 0:00:17]} 60. Kc2 {[%emt 0:00:35]} Kd4 {[%emt 0:00:27]} 61. Kd1 {[%emt 0:00:25]} Bf2 {[%emt 0:01:46]} 62. Ke2 {[%emt 0:00:25]} Bg3 {[%emt 0:00:29]} 63. Nf8 {[%emt 0:00:52]} Kd5 {[%emt 0:00:08]} 64. Ng6 {[%emt 0:00:07]} e5 {[%emt 0:00:35]} 65. fxe5 {[%emt 0:01:10]} Bxe5 {[%emt 0:00:02]} 66. Ke3 {[%emt 0:01:13]} Ke6 {[%emt 0:01:14]} 67. Nf8+ {[%emt 0:01:39]} Kf7 {[%emt 0:00:46]} 68. Nh7 {[%emt 0:00:15]} Bg3 {[%emt 0:00:36]} 69. Ng5+ {[%emt 0:00:33]} Kg6 {[%emt 0:00:12]} 70. Ne6 {[%emt 0:00:29]} Kf6 {[%emt 0:00:50]} 71. Nf4 {[%emt 0:00:47]} g6 {[%emt 0:00:32]} 72. Ng2 {[%emt 0:00:08]} g5 {[%emt 0:00:30]} 73. hxg5+ {[%emt 0:00:34]} Kxg5 {[%emt 0:00:01]} 74. Ke2 {[%emt 0:00:20]} h4 {[%emt 0:00:23]} 75. Kf1 {[%emt 0:00:29]} h3 {[%emt 0:00:27]} 76. Ne3 {[%emt 0:00:03]} f4 {[%emt 0:00:43]} 77. Nd5 {[%emt 0:00:10]} Kf5 {[%emt 0:00:52]} 78. Nxf4 {[%emt 0:01:11]} 1/2-1/2

[Event "Bundesturnier Hauptturnier 1 2024"]
[Site "Olten"]
[Date "2024.05.12"]
[Round "7.12"]
[White "Artan, Tamir"]
[Black "Szakolczai, Peter"]
[Result "0-1"]
[ECO "B32"]
[WhiteElo "1908"]
[BlackElo "2183"]
[Annotator "ChessBase"]
[PlyCount "106"]
[EventDate "2024.05.09"]
[EventType "tourn"]
[EventCountry "SUI"]
[SourceTitle "playchess.com"]
[Source "ChessBase"]
[SourceQuality "1"]
[TimeControl "5400+30"]

1. e4 {[%emt 0:00:03]} c5 {[%emt 0:05:31]} 2. Nf3 {[%emt 0:00:05]} Nc6 {[%emt 0:00:26]} 3. d4 {[%emt 0:00:04]} cxd4 {[%emt 0:00:20]} 4. Nxd4 {[%emt 0:00:07]} e5 {[%emt 0:00:14]} 5. Nb5 {[%emt 0:00:04]} d6 {[%emt 0:00:25]} 6. c4 {[%emt 0:00:04]} Be6 {[%emt 0:00:42]} 7. N1c3 {[%emt 0:00:40]} a6 {[%emt 0:00:54]} 8. Na3 {[%emt 0:00:06]} g6 {[%emt 0:01:23]} 9. Be3 {[%emt 0:01:16]} Bg7 {[%emt 0:00:38]} 10. Nc2 {[%emt 0:00:09]} Nf6 {[%emt 0:00:18]} 11. Be2 {[%emt 0:00:07]} O-O {[%emt 0:01:19]} 12. O-O {[%emt 0:00:11]} Rc8 {[%emt 0:00:29]} 13. b3 {[%emt 0:05:59]} b5 {[%emt 0:09:15]} 14. cxb5 {[%emt 0:02:59]} Na7 {[%emt 0:00:51]} 15. Bxa7 {[%emt 0:02:42]} Rxc3 {[%emt 0:00:06]} 16. b6 {[%emt 0:01:39]} Nxe4 {[%emt 0:04:32]} 17. Nb4 {[%emt 0:15:55]} d5 {[%emt 0:23:29]} 18. Nxa6 {[%emt 0:01:52]} Qa8 {[%emt 0:01:12]} 19. f3 {[%emt 0:14:09]} Nd6 {[%emt 0:02:29]} 20. Rc1 {[%emt 0:00:46]} Rfc8 {[%emt 0:09:40]} 21. Rxc3 {[%emt 0:12:10]} Rxc3 {[%emt 0:00:03]} 22. Nb4 {[%emt 0:10:04]} Nc8 {[%emt 0:16:04]} 23. Qd2 {[%emt 0:01:40]} d4 {[%emt 0:03:35]} 24. Bd3 {[%emt 0:01:59]} f5 {[%emt 0:02:18]} 25. Qg5 {[%emt 0:01:55]} Kf7 {[%emt 0:02:45]} 26. Qd8 {[%emt 0:12:09]} Bf6 {[%emt 0:05:10]} 27. Be4 {[%emt 0:00:23]} Bxd8 {[%emt 0:00:26]} 28. Bxa8 {[%emt 0:00:05]} Nxb6 {[%emt 0:01:19]} 29. Nc6 {[%emt 0:01:49]} Nxa8 {[%emt 0:01:09]} 30. Nxd8+ {[%emt 0:00:12]} Kf6 {[%emt 0:00:09]} 31. Nxe6 {[%emt 0:00:55]} Kxe6 {[%emt 0:00:01]} 32. f4 {[%emt 0:02:32]} d3 {[%emt 0:02:03]} 33. fxe5 {[%emt 0:02:07]} d2 {[%emt 0:00:36]} 34. Be3 {[%emt 0:05:42]} Rxe3 {[%emt 0:00:05]} 35. Kf2 {[%emt 0:00:04]} Rxe5 {[%emt 0:00:47]} 36. Rd1 {[%emt 0:00:09]} Rd5 {[%emt 0:01:46]} 37. Ke3 {[%emt 0:00:24]} Ke5 {[%emt 0:01:33]} 38. Rxd2 {[%emt 0:00:19]} f4+ {[%emt 0:00:06]} 39. Ke2 {[%emt 0:00:04]} Rxd2+ {[%emt 0:01:25]} 40. Kxd2 {[%emt 0:00:07]} g5 {[%emt 0:00:34]} 41. Ke2 {[%emt 0:00:20]} g4 {[%emt 0:00:10]} 42. h3 {[%emt 0:00:50]} h5 {[%emt 0:00:16]} 43. hxg4 {[%emt 0:00:07]} hxg4 {[%emt 0:00:11]} 44. Kd3 {[%emt 0:00:13]} Nb6 {[%emt 0:01:41]} 45. b4 {[%emt 0:01:32]} Kd5 {[%emt 0:00:25]} 46. a3 {[%emt 0:00:32]} Nc4 {[%emt 0:01:00]} 47. b5 {[%emt 0:00:37]} Nxa3 {[%emt 0:01:40]} 48. b6 {[%emt 0:00:10]} Nc4 {[%emt 0:00:33]} 49. b7 {[%emt 0:00:36]} Ne5+ {[%emt 0:00:04]} 50. Ke2 {[%emt 0:00:24]} Nc6 {[%emt 0:00:09]} 51. Kd3 {[%emt 0:00:21]} Ke5 {[%emt 0:00:56]} 52. Kd2 {[%emt 0:00:56]} Kd4 {[%emt 0:00:25]} 53. Ke2 {[%emt 0:00:05]} Nb8 {[%emt 0:01:08]} 0-1